[Event "37th ECCC 2022"]
[Site "Mayrhofen"]
[Date "2022.10.04"]
[Round "2.30"]
[White "Meessen, Rudolf"]
[Black "Tregubov, Pavel V."]
[Result "0-1"]
[ECO "A45"]
[WhiteElo "2162"]
[BlackElo "2548"]
[Annotator "TA"]
[PlyCount "90"]
[EventDate "2022.10.03"]
[EventType "team-tourn"]
[EventCountry "AUT"]
[SourceTitle "playchess.com"]
[Source "ChessBase"]
[SourceQuality "1"]
[TimeControl "40/5400+30:1800+30"]

{[%evp 9,90,0,2,18,6,10,22,-46,-58,-54,-58,-49,-39,-251,-54,-258,-129,-149,-60,-91,-96,-75,-66,-67,-67,-212,-204,-193,-140,-148,-128,-487,-446,-412,-417,-360,-365,-551,-544,-544,-527,-511,-111,-492,-490,-472,-380,-365,-372,-365,-294,-295,-290,-398,-389,-373,-247,-407,-232,-275,-260,-247,-226,-516,-511,-545,-533,-536,-536,-1300,-1110,-1173,-1088,-1077,-1070,-1673,-1673,-1612,-1566,-1597,-1565,-1479,-1463]} 1. d4 {[%emt 0:00:04]} Nf6 {[%emt 0:00:06]} 2. Nc3 {[%emt 0:00:09]} d5 {[%emt 0:00:07]} 3. Bf4 {[%emt 0:00:05]} a6 {[%emt 0:00:14]} 4. e3 {[%emt 0:00:32]} e6 {[%emt 0:00:07]} 5. g4 {[%emt 0:00:20][%cal Bg2g4,Bg4g5][%mdl 32]} h6 {[%emt 0:00:30]} 6. h4 {[%emt 0:06:07] D00: 1 d4 d5: Unusual lines.} c5 {[%emt 0:00:16]} 7. Qf3 {[%emt 0:10:50]} Nc6 {[%emt 0:00:51]} 8. O-O-O {[%emt 0:07:12] [#]} ({White should try} 8. Nge2 $1 $11) 8... b5 $146 {[%emt 0:24:15][%cal Bb7b5,Bb5b4][%mdl 32]} ({Predecessor:} 8... Qa5 9. Kb1 Nd7 10. g5 cxd4 11. exd4 hxg5 12. hxg5 Rxh1 13. Qxh1 g6 14. Nf3 b5 {0-1 (49) Alekseenko,K (2563)-Sjugirov,S (2650) Sochi 2017}) 9. g5 {[%emt 0:01:03]} b4 $1 {[%emt 0:00:26]} 10. Na4 {[%emt 0:09:08]} Ne4 {[%emt 0:01:32][%cal Rh6g5]} 11. Ne2 $2 {[%emt 0:26:06]} (11. gxh6 $15 Qa5 12. hxg7 Bxg7 13. b3) 11... cxd4 $2 {[%emt 0:17:17]} (11... hxg5 $19 12. Bxg5 Qa5) 12. Nxd4 $2 {[%emt 0:01:28] [#]} (12. gxh6 $15 e5 13. Ng3) 12... Nxd4 {[%emt 0:01:36]} (12... Bd7 $1 $19 {aiming for ...Nxd4.} 13. b3 (13. Nxc6 $2 Bxc6 14. Bd3 hxg5 $19) 13... hxg5 14. hxg5 Rxh1 15. Qxh1 Nxf2) 13. Rxd4 {[%emt 0:00:30]} hxg5 {[%emt 0:06:11]} (13... Bd7 $17 14. b3 hxg5 15. hxg5 Rxh1 16. Qxh1 Bxa4 17. bxa4 Nxf2) 14. hxg5 {[%emt 0:00:16]} Rxh1 {[%emt 0:00:30]} 15. Qxh1 {[%emt 0:00:03]} Bd7 {[%emt 0:00:40]} 16. f3 {[%emt 0:09:35]} Nxg5 {[%emt 0:03:46]} (16... Bxa4 17. fxe4 Rc8 18. b3 $18) 17. Nb6 {[%emt 0:00:45]} Qxb6 $19 {[%emt 0:01:00]} 18. Bxg5 {[%emt 0:00:06]} Rc8 {[%emt 0:02:19]} (18... Qa5 $19 19. Kb1 b3 20. axb3 Qe1+ 21. Ka2 a5) 19. Bd3 {[%emt 0:01:57]} Bb5 {[%emt 0:01:14]} 20. Qh8 $2 {[%emt 0:02:03][%mdl 8192]} (20. Kb1 $17 {is more resistant.}) 20... Bxd3 {[%emt 0:04:05]} 21. Rxd3 {[%emt 0:00:02]} Qc7 {[%emt 0:01:48][%csl Gc8][%cal Rc7c2]} 22. Rd2 {[%emt 0:00:54]} Qg3 {[%emt 0:05:41]} 23. Bf4 {[%emt 0:00:13]} (23. Qh4 $142 Qg1+ 24. Rd1) 23... Qe1+ {[%emt 0:00:10]} 24. Rd1 {[%emt 0:00:05]} Qe2 {[%emt 0:00:07][%csl Gc8][%cal Re2c2]} 25. Rd2 {[%emt 0:01:05]} Qf1+ {[%emt 0:00:24]} 26. Rd1 {[%emt 0:00:06] [#]} Qc4 {[%emt 0:00:06][%csl Gc8][%cal Rc4c2]} 27. Rd2 {[%emt 0:02:47]} Qxa2 {[%emt 0:00:28][%cal Ra2a1]} 28. Kd1 {[%emt 0:00:10]} Rc6 {[%emt 0:05:45] Against Bd6} (28... Qxb2 29. Bd6 Kd7 30. Bxf8 $17) ({But not} 28... Qb1+ $2 29. Ke2 Rc6 30. Be5 $19) 29. Be5 {[%emt 0:04:34]} Qb1+ {[%emt 0:07:56]} 30. Ke2 {[%emt 0:00:01]} Qg1 {[%emt 0:00:13]} ({Not} 30... Rxc2 31. Bxg7 Rxd2+ 32. Kxd2 $16) 31. f4 {[%emt 0:03:25]} f6 {[%emt 0:03:21]} 32. Bd4 {[%emt 0:01:24]} Kf7 {[%emt 0:00:12] And now ...Qg6 would win.} 33. c3 $2 {[%emt 0:00:26]} (33. Qh5+ Ke7 34. b3) 33... Rc7 {[%emt 0:04:12]} (33... Qg4+ $142 34. Kf1 a5) 34. Kf3 {[%emt 0:03:47]} bxc3 {[%emt 0:01:42]} 35. bxc3 {[%emt 0:00:07]} Rb7 {[%emt 0:00:24] Inhibits Rb2. Threatens to win with ...Qf1+.} 36. Rg2 $2 {[%emt 0:00:25]} (36. Qh5+ {is a better defense.} Kg8 37. Qg4 Qh1+ 38. Kg3) 36... Qd1+ {[%emt 0:00:43] Black is clearly winning.} 37. Kg3 {[%emt 0:00:44]} Rb1 {[%emt 0:02:55]} 38. Qh2 {[%emt 0:04:31]} a5 {[%emt 0:01:08]} 39. Kh4 {[%emt 0:02:36]} Qd3 {[%emt 0:01:28]} 40. Kg4 {[%emt 0:03:11]} Qf5+ {[%emt 0:01:34]} 41. Kg3 {[%emt 0:01:38]} Rf1 {[%emt 0:00:42] Strongly threatening ...Qg6+.} 42. Rf2 {[%emt 0:03:25]} Qg6+ {[%emt 0:00:56]} 43. Kf3 {[%emt 0:00:31] [#]} Rh1 $3 {[%emt 0:03:07][%mdl 512]} 44. Qg2 {[%emt 0:02:36]} (44. Qxh1 Qe4+) 44... Qh5+ {[%emt 0:00:31]} 45. Kg3 {[%emt 0:00:19]} Rh4 {[%emt 0:00:50] Weighted Error Value: White=0.97/Black=0.46} 0-1

[Event "37th ECCC 2022"]
[Site "Mayrhofen"]
[Date "2022.10.04"]
[Round "2.31"]
[White "Ten Hertog, Hugo"]
[Black "Kryvoruchko, Yuriy"]
[Result "1-0"]
[ECO "A06"]
[WhiteElo "2525"]
[BlackElo "2658"]
[Annotator "TA"]
[PlyCount "121"]
[EventDate "2022.10.03"]
[EventType "team-tourn"]
[EventCountry "AUT"]
[SourceTitle "playchess.com"]
[Source "ChessBase"]
[SourceQuality "1"]
[TimeControl "40/5400+30:1800+30"]

{[%evp 14,121,12,9,0,0,0,0,21,8,25,0,29,13,8,8,16,24,19,13,14,30,55,66,50,75,80,72,120,102,145,120,181,191,248,224,222,205,330,302,292,360,336,351,323,330,356,244,244,225,218,227,193,155,143,145,136,62,66,19,16,20,39,45,65,66,87,12,13,0,16,30,31,0,-7,-15,0,0,0,-22,-27,-56,-56,-57,-68,-123,0,-265,-260,-251,-235,-247,-233,-222,-203,-135,-5,-140,-30,-27,0,0,0,0,0,0,0,0,0,0]} 1. c4 {[%emt 0:00:04]} e6 {[%emt 0:00:59]} 2. e3 {[%emt 0:01:54]} Nf6 {[%emt 0:00:55]} 3. b3 {[%emt 0:03:05]} d5 {[%emt 0:01:26]} 4. Bb2 {[%emt 0:00:05]} c5 {[%emt 0:00:54]} 5. Nf3 {[%emt 0:00:36]} Nc6 {[%emt 0:00:42]} 6. cxd5 {[%emt 0:06:32]} exd5 {[%emt 0:00:06]} 7. Bb5 {[%emt 0:00:04]} Bd6 {[%emt 0:00:50]} 8. O-O {[%emt 0:04:23]} O-O {[%emt 0:00:59] A13: English Opening: 1...e6.} 9. Nc3 {[%emt 0:02:59]} Bg4 {[%emt 0:09:53]} 10. h3 {[%emt 0:01:30]} Bh5 {[%emt 0:00:40]} 11. Be2 {[%emt 0:08:22][%cal Bb5e2,Be2g4,Bg4f5][%mdl 32] [#]} Qe7 $146 {[%emt 0:09:19]} ({Predecessor:} 11... Bb8 12. d4 Bxf3 13. Bxf3 cxd4 14. exd4 a6 15. Rc1 Re8 16. a3 h5 17. h4 Ba7 {½-½ (44) Tudorache,M (2279)-Hermansen,R (2067) ICCF email 2019}) 12. Rc1 {[%emt 0:11:52]} a6 {[%emt 0:06:33]} 13. Nh4 {[%emt 0:17:58]} Bg6 {[%emt 0:04:16]} (13... Qe5 $2 14. f4 Bxe2 15. fxe5 $18) 14. Na4 {[%emt 0:11:20]} Rad8 {[%emt 0:10:31]} 15. Bxf6 {[%emt 0:09:24]} gxf6 {[%emt 0:01:51]} 16. Bg4 {[%emt 0:00:22] And now Nf5 would win.} Kh8 {[%emt 0:17:48][%cal Of6f5]} 17. f4 {[%emt 0:02:53]} (17. Nf5 $2 Bxf5 18. Bxf5 Qe5 $19) 17... d4 {[%emt 0:06:29]} 18. Nf5 {[%emt 0:07:01]} Bxf5 {[%emt 0:00:14]} 19. Bxf5 {[%emt 0:00:03]} Rg8 {[%emt 0:00:03]} 20. Qf3 {[%emt 0:00:07]} dxe3 {[%emt 0:02:23]} (20... Bc7 $142) 21. dxe3 $16 {[%emt 0:00:04]} Bb8 {[%emt 0:00:06][%cal Oc5c4]} 22. Nc3 $40 {[%emt 0:06:29][%mdl 128] White has strong attack.} (22. Nxc5 Ba7 23. Ne4 Rd5 $11) 22... Ba7 {[%emt 0:13:37]} (22... Rd2 $16 {might work better.} 23. Rf2 Qd8) 23. Kh1 $18 {[%emt 0:00:06]} Qf8 {[%emt 0:00:07]} (23... c4 {was worth a try.}) 24. Rcd1 {[%emt 0:00:44]} (24. Qh5 $6 Qg7 25. g4 Ne7 $16) 24... Ne7 {[%emt 0:05:06]} 25. Bc2 {[%emt 0:00:18]} b5 {[%emt 0:00:25]} (25... c4 {keeps fighting.} 26. bxc4 (26. Qxb7 cxb3 27. axb3 Rc8 $18) 26... Rc8) 26. Rxd8 {[%emt 0:00:16]} Qxd8 {[%emt 0:00:04]} 27. Rd1 {[%emt 0:00:05] Prevents Qd2.} Qc8 {[%emt 0:00:14]} 28. Ne4 {[%emt 0:01:43]} f5 {[%emt 0:06:10]} 29. Nd6 {[%emt 0:01:16][%csl LRc8,LRf7]} Qe6 {[%emt 0:00:05]} 30. Qh5 {[%emt 0:01:58]} Qg6 {[%emt 0:00:07][%csl Gg8][%cal Rg6g2]} 31. Nxf7+ {[%emt 0:00:54]} Kg7 {[%emt 0:00:02]} 32. Qxg6+ {[%emt 0:00:11]} hxg6 {[%emt 0:00:02]} 33. Ne5 {[%emt 0:00:31]} Bb8 {[%emt 0:00:24]} 34. Rd7 {[%emt 0:01:04]} Kf6 {[%emt 0:00:04][%cal Bg7f6,Bf6e6,Be6d6,Bd6c7,Bc7b6][%mdl 32]} 35. Nd3 {[%emt 0:00:50] White is much more active.} (35. Nf3 $16) 35... Rc8 $1 $14 {[%emt 0:00:27]} 36. g4 {[%emt 0:00:49]} (36. Kg1 $14 {is more appropriate.}) 36... Ke6 $1 $11 {[%emt 0:00:34]} 37. Rb7 {[%emt 0:00:06] next b4 is good for White.} Nd5 {[%emt 0:00:01] Inhibits b4.} 38. b4 {[%emt 0:00:47]} cxb4 {[%emt 0:02:32]} 39. Bb3 {[%emt 0:00:10]} Kd6 $1 {[%emt 0:00:01][%cal Oc8c3]} 40. Rg7 {[%emt 0:00:56]} (40. g5 $16) 40... Ne7 $1 {[%emt 0:00:15]} 41. Rf7 {[%emt 0:30:29]} a5 {[%emt 0:12:37]} (41... Rc3 $5 {[%cal Rc3d3]} 42. Rf8 Ba7 $11) 42. Rf6+ {[%emt 0:00:00]} Kc7 {[%emt 0:00:02]} 43. Ne5 {[%emt 0:00:00]} (43. Re6 $5 {[%cal Re6e7]} Kd8 44. Rb6 $14) 43... a4 {[%emt 0:00:20]} 44. Be6 {[%emt 0:00:00]} Rd8 {[%emt 0:01:24]} 45. Nxg6 {[%emt 0:00:00]} (45. gxf5 b3 46. axb3 a3 $17) 45... Rd1+ {[%emt 0:16:31]} 46. Kg2 {[%emt 0:00:00]} (46. Kh2 $5 {[%cal Rg6e7]} Nxg6 47. Rxg6 fxg4 48. hxg4 $14) 46... Nd5 {[%emt 0:00:04]} 47. Rf7+ {[%emt 0:00:00]} (47. Rxf5 $2 Nxe3+ 48. Kf3 Nxf5 49. gxf5 (49. Bxf5 $2 b3 $19) 49... Kd6 $19) 47... Kb6 $1 {[%emt 0:00:39]} 48. Ne7 $1 {[%emt 0:00:00]} (48. Bxf5 $2 b3 49. axb3 a3 $19) (48. Bxd5 Rxd5 49. Rf6+ (49. Rxf5 $2 Rxf5 50. gxf5 b3 $19) 49... Rd6 $19) 48... Nxe3+ {[%emt 0:02:42]} 49. Kf3 {[%emt 0:00:00] [#]} ({Better is} 49. Kf2 $15 Bxf4 50. gxf5) 49... Nc4 {[%emt 0:00:05]} (49... Nc2 $1 $17 {[%cal Rc2d4] Hoping for ...Nd4+.} 50. Ke2 (50. Nxf5 b3 $15) (50. Bxf5 $2 Nd4+ 51. Kf2 Kc5 $19) (50. gxf5 b3 $17) 50... Re1+ 51. Kd2 Rxe6 52. Kxc2 Re2+ 53. Kd3 Rxa2 54. Rf6+ Kb7) 50. Rxf5 $2 {[%emt 0:00:00][%mdl 8192]} (50. Nd5+ $11 Kc5 51. Rxf5) 50... Rd3+ $19 {[%emt 0:00:38]} 51. Kf2 {[%emt 0:00:00] [#]} b3 $1 {[%emt 0:00:04]} ({Stronger than} 51... Rd2+ 52. Ke1 Rh2 53. g5 $11) 52. axb3 {[%emt 0:00:38]} axb3 {[%emt 0:00:00] ...b2 is the strong threat.} 53. Rf6 {[%emt 0:00:21] aiming for Bxc4+.} Kc5 {[%emt 0:00:34] Threatens to win with ...b2.} 54. Bf5 {[%emt 0:00:08]} Rxh3 {[%emt 0:00:58]} (54... Rd4 $17 55. Bh7 (55. Rc6+ $2 Kb4 $17) 55... Bxf4 56. Rf5+ Be5) 55. g5 {[%emt 0:01:58]} (55. Rc6+ $11 Kd4 56. Re6) 55... b2 {[%emt 0:01:15]} 56. g6 $11 {[%emt 0:00:49] [#]} Ne3 $1 {[%emt 0:01:16]} 57. g7 {[%emt 0:00:22] The position is equal.} (57. Bxh3 b1=Q) 57... Ng4+ $1 {[%emt 0:01:04]} 58. Kg2 $1 {[%emt 0:04:11] Black must now prevent Rc6+.} ({But not} 58. Bxg4 $2 Rh2+ 59. Kg3 b1=Q $19) 58... Rh2+ {[%emt 0:00:48]} 59. Kg3 {[%emt 0:00:14] White wants to mate with Rc6+. Dancing on a razor blade.} Nxf6 {[%emt 0:00:07]} 60. Kxh2 {[%emt 0:00:11]} Bxf4+ {[%emt 0:00:57]} 61. Kg2 {[%emt 0:00:07][%mdl 32768] What a bad dream for Black.  Weighted Error Value: White=0.23 (precise) /Black=0.20 (precise) . Sensor Board Error (Ke4/e5)?} 1-0

[Event "37th ECCC 2022"]
[Site "Mayrhofen"]
[Date "2022.10.04"]
[Round "2.32"]
[White "Fedorchuk, Sergey A."]
[Black "Lombaers, Peter"]
[Result "1-0"]
[ECO "B31"]
[WhiteElo "2619"]
[BlackElo "2351"]
[Annotator "TA"]
[PlyCount "81"]
[EventDate "2022.10.03"]
[EventType "team-tourn"]
[EventCountry "AUT"]
[SourceTitle "playchess.com"]
[Source "ChessBase"]
[SourceQuality "1"]
[TimeControl "40/5400+30:1800+30"]

{[%evp 10,81,14,13,37,37,39,39,15,21,37,37,45,31,35,20,28,0,0,0,0,0,51,39,66,6,4,0,0,0,0,0,0,0,14,0,0,-19,97,69,145,16,209,220,214,211,214,212,216,195,198,92,79,61,76,81,66,73,67,74,81,73,85,83,131,135,258,228,270,272,577,520,494,495]} 1. e4 {[%emt 0:00:08]} c5 {[%emt 0:00:05]} 2. Nf3 {[%emt 0:00:13]} Nc6 {[%emt 0:00:03]} 3. Bb5 {[%emt 0:00:54]} g6 {[%emt 0:00:05]} 4. Bxc6 {[%emt 0:01:24]} bxc6 {[%emt 0:00:04]} 5. O-O {[%emt 0:01:16]} Bg7 {[%emt 0:00:05]} 6. Re1 {[%emt 0:00:46]} Qc7 {[%emt 0:00:07] now scores much better than the old 6...Nh6. B31: Sicilian: 2...Nc6 3 Bb5 g6.} 7. c3 {[%emt 0:05:05]} d6 {[%emt 0:01:03]} 8. d4 {[%emt 0:01:08]} cxd4 {[%emt 0:00:21] White is slightly better.} 9. cxd4 {[%emt 0:00:14]} Nf6 {[%emt 0:00:28]} 10. Nc3 {[%emt 0:01:44]} O-O {[%emt 0:00:08]} 11. Bf4 $5 {[%emt 0:00:32][%mdl 4] [#] A promising side line.} Nh5 $146 {[%emt 0:02:09]} ({Predecessor:} 11... Bg4 12. h3 Bxf3 13. Qxf3 Nd7 14. Rad1 Rab8 15. e5 dxe5 16. dxe5 Nxe5 17. Qe2 f6 18. Bxe5 fxe5 {1-0 (74) Yakubboev,N (2656)-Aryan,C (2632) Tashkent 2022}) 12. Be3 {[%emt 0:03:58]} Bg4 {[%emt 0:00:40]} 13. Rc1 {[%emt 0:05:18][%cal Oc3d5]} (13. h3 $5 {[%cal Rh3g4]} Bxf3 14. Qxf3 $11) 13... Qb7 {[%emt 0:04:55]} 14. Na4 {[%emt 0:07:43]} f5 {[%emt 0:07:58]} 15. e5 {[%emt 0:06:06]} f4 {[%emt 0:06:15]} ({Black should try} 15... Qb5 $11) 16. Bd2 $14 {[%emt 0:00:12]} dxe5 {[%emt 0:01:25]} 17. dxe5 {[%emt 0:11:54]} (17. b4 $1 $14) 17... Rad8 $11 {[%emt 0:02:25]} 18. Qe2 {[%emt 0:02:01]} Bxf3 {[%emt 0:28:19]} 19. gxf3 {[%emt 0:00:10]} Rd5 {[%emt 0:00:20]} 20. Bc3 {[%emt 0:00:59]} Rf5 {[%emt 0:06:19]} 21. Rcd1 {[%emt 0:02:58]} Qc8 {[%emt 0:04:39]} 22. Rxd5 {[%emt 0:11:20]} cxd5 {[%emt 0:01:33]} 23. Qb5 {[%emt 0:00:48]} Rg5+ {[%emt 0:08:34]} (23... e6 $1 $11 {remains equal.}) 24. Kh1 {[%emt 0:11:22]} Qe6 {[%emt 0:03:01]} (24... Qh3 $2 25. Qxd5+ e6 26. Qd8+ Bf8 27. Qxg5 $18) (24... e6 $14) 25. Rd1 {[%emt 0:00:35] Really sharp!} (25. Qb7 $1 $16) 25... Qh3 $2 {[%emt 0:15:17]} (25... Bxe5 $11 {and Black stays safe.} 26. Qxd5 (26. Rxd5 $2 Qh3 $19) 26... Kf7) 26. Qxd5+ $18 {[%emt 0:02:34]} e6 {[%emt 0:00:34][%csl Gg5][%cal Rh3g2]} 27. Qa8+ {[%emt 0:01:14]} Bf8 {[%emt 0:00:05][%csl Gg5][%cal Rh3g2]} 28. Rg1 {[%emt 0:00:09] Prevents Qg2+.} Rf5 {[%emt 0:05:03][%cal Oh5f6]} 29. Nc5 $1 {[%emt 0:06:13]} Rf7 {[%emt 0:00:07] [#]} 30. Nd3 {[%emt 0:05:03]} (30. Rg2 $1 $18) 30... Qf5 $16 {[%emt 0:01:01]} 31. Nb4 {[%emt 0:03:35]} Kg7 {[%emt 0:00:35]} 32. Nc6 $36 {[%emt 0:04:30][%mdl 2048] And now Nd4 would win. Keeping Black busy.} Bc5 {[%emt 0:01:07]} 33. Nd4 {[%emt 0:00:31] White is more active.} Bxd4 {[%emt 0:00:40]} 34. Bxd4 {[%emt 0:00:04]} Qd3 {[%emt 0:00:19]} 35. Qe4 {[%emt 0:01:22]} ({Don't blunder} 35. Bxa7 $2 Qa6 36. Qb8 Rxa7 $19) (35. Bc3 {feels hotter.} Qf5 36. Qd8 Qh3 37. Qd3) 35... Qxe4 {[%emt 0:01:04]} 36. fxe4 {[%emt 0:00:09] KRB-KRN} Rd7 {[%emt 0:00:52]} (36... f3 $142) 37. Bc5 {[%emt 0:00:39]} Rd2 {[%emt 0:00:15]} (37... a5 $16 {keeps fighting.}) 38. Bxa7 $18 {[%emt 0:02:33]} Rxb2 {[%emt 0:00:08] [#]} 39. Ra1 {[%emt 0:00:05] aiming for a4.} f3 $2 {[%emt 0:01:02]} (39... Rb7 {is a better chance.}) 40. Be3 {[%emt 0:00:17] Hoping for a4.} Kf7 {[%emt 0:00:42]} 41. a4 {[%emt 0:30:14] Weighted Error Value: White=0.15 (very precise) /Black=0.28 (precise)} 1-0

[Event "37th ECCC 2022"]
[Site "Mayrhofen"]
[Date "2022.10.04"]
[Round "2.33"]
[White "Kerigan, Demre"]
[Black "Wagner, Dennis"]
[Result "0-1"]
[ECO "C47"]
[WhiteElo "2355"]
[BlackElo "2570"]
[Annotator "TA"]
[PlyCount "40"]
[EventDate "2022.10.03"]
[EventType "team-tourn"]
[EventCountry "AUT"]
[SourceTitle "playchess.com"]
[Source "ChessBase"]
[SourceQuality "1"]
[TimeControl "40/5400+30:1800+30"]

{[%evp 10,40,0,0,0,-4,0,-23,-9,-52,-57,-60,-46,-46,-53,-45,-38,-50,-47,-81,-47,-56,-64,-138,-131,-393,-404,-594,-541,-525,-501,-574,-389]} 1. e4 {[%emt 0:00:05]} e5 {[%emt 0:00:04]} 2. Nf3 {[%emt 0:00:07]} Nc6 {[%emt 0:00:04]} 3. Nc3 {[%emt 0:00:34]} Nf6 {[%emt 0:00:06]} 4. g3 {[%emt 0:00:19]} Bc5 {[%emt 0:00:47]} 5. Bg2 {[%emt 0:00:12]} d6 {[%emt 0:00:19]} 6. d3 {[%emt 0:00:57]} a5 {[%emt 0:00:04] C26: Vienna Game: 2...Nf6, sidelines .} 7. O-O {[%emt 0:00:57]} O-O {[%emt 0:03:37]} 8. h3 {[%emt 0:01:35]} a4 {[%emt 0:03:52] [#] Black has an edge.} 9. Nd5 $146 {[%emt 0:09:43]} ({Predecessor:} 9. a3 Nd4 10. Nxd4 Bxd4 11. Kh2 c6 12. f4 h6 13. Ne2 Ba7 14. Ng1 Re8 15. fxe5 dxe5 {0-1 (54) Chigaev,M (2631)-Yu,Y (2738) Moscow 2019}) 9... Nxd5 {[%emt 0:05:38]} 10. exd5 {[%emt 0:04:12]} Ne7 {[%emt 0:01:47]} 11. d4 {[%emt 0:30:37]} exd4 {[%emt 0:01:40]} 12. Nxd4 {[%emt 0:00:05]} Nf5 {[%emt 0:00:32]} 13. Nxf5 {[%emt 0:01:24]} Bxf5 {[%emt 0:00:06]} 14. c3 {[%emt 0:04:59]} Re8 {[%emt 0:04:19]} 15. Bf4 $1 {[%emt 0:04:44]} Qd7 {[%emt 0:02:25]} 16. Kh2 {[%emt 0:02:42]} (16. g4 $15 Be4 17. Re1) 16... Qb5 $17 {[%emt 0:02:12] [#] White must now prevent ...Bd3. Black is more active.} 17. Qd2 {[%emt 0:01:34][%mdl 8192] White does not recover from this.} (17. b3 $17 {keeps fighting.}) 17... Re2 $19 {[%emt 0:03:08]} 18. Qd1 {[%emt 0:09:21]} (18. c4 $142 Qxc4 19. Qc3) 18... Qxb2 {[%emt 0:06:30] Black is clearly winning.} 19. g4 {[%emt 0:04:05]} Bg6 {[%emt 0:07:35]} ({Weaker is} 19... Rxf2 20. Rxf2 Bxf2 21. gxf5 $11) 20. Bc1 {[%emt 0:05:44]} Qc2 {[%emt 0:06:06] Weighted Error Value: White=0.50/Black=0.10 (very precise)} 0-1